[Event "Titled Tuesday Blitz March 29 Early 2022"]
[White "Krysa, Leandro"]
[Black "Ianov, Viktor"]
[WhiteFideId "116807"]
[BlackFideId "14102730"]
[WhiteElo "2490"]
[BlackElo "2161"]
[Result "1-0"]
[Round "10"]
[TimeControl "180+1"]
[Date "2022.03.30"]
[WhiteClock "0:00:05"]
[BlackClock "0:01:09"]

1. e4 {[%clk 0:02:57]}  d6 {[%clk 0:02:59]} 2. d4 {[%clk 0:02:56]}  Nf6 {[%clk 0:02:59]} 3. Nc3 {[%clk 0:02:56]}  c6 {[%clk 0:03:00]} 4. Nf3 {[%clk 0:02:54]}  Bg4 {[%clk 0:02:58]} 5. h3 {[%clk 0:02:54]}  Bh5 {[%clk 0:02:58]} 6. Qe2 {[%clk 0:02:54]}  e6 {[%clk 0:02:58]} 7. g4 {[%clk 0:02:53]}  Bg6 {[%clk 0:02:58]} 8. h4 {[%clk 0:02:53]}  h5 {[%clk 0:02:57]} 9. g5 {[%clk 0:02:52]}  Nfd7 {[%clk 0:02:57]} 10. Bh3 {[%clk 0:02:44]}  Be7 {[%clk 0:02:57]} 11. d5 {[%clk 0:02:40]}  e5 {[%clk 0:02:56]} 12. Be3 {[%clk 0:02:33]}  O-O {[%clk 0:02:55]} 13. O-O-O {[%clk 0:02:32]}  Qc7 {[%clk 0:02:53]} 14. Kb1 {[%clk 0:02:31]}  Nb6 {[%clk 0:02:53]} 15. Rhe1 {[%clk 0:02:21]}  N8d7 {[%clk 0:02:52]} 16. Nd2 {[%clk 0:02:15]}  Rfd8 {[%clk 0:02:42]} 17. f4 {[%clk 0:02:01]}  exf4 {[%clk 0:02:41]} 18. Bxf4 {[%clk 0:02:01]}  Ne5 {[%clk 0:02:39]} 19. Nb3 {[%clk 0:01:50]}  a5 {[%clk 0:02:31]} 20. Nd4 {[%clk 0:01:44]}  Bf8 {[%clk 0:02:17]} 21. Nf5 {[%clk 0:01:36]}  cxd5 {[%clk 0:02:13]} 22. Nxd5 {[%clk 0:01:30]}  Nxd5 {[%clk 0:02:06]} 23. Rxd5 {[%clk 0:01:29]}  a4 {[%clk 0:02:04]} 24. a3 {[%clk 0:01:29]}  Ra5 {[%clk 0:01:59]} 25. Red1 {[%clk 0:01:27]}  Rxd5 {[%clk 0:01:58]} 26. Rxd5 {[%clk 0:01:28]}  Re8 {[%clk 0:01:55]} 27. Qb5 {[%clk 0:01:13]}  Qc6 {[%clk 0:01:54]} 28. Qxc6 {[%clk 0:00:59]}  bxc6 {[%clk 0:01:53]} 29. Nxd6 {[%clk 0:00:50]}  Bxd6 {[%clk 0:01:49]} 30. Rxd6 {[%clk 0:00:50]}  Bxe4 {[%clk 0:01:47]} 31. Rd4 {[%clk 0:00:42]}  Nf3 {[%clk 0:01:39]} 32. Rxa4 {[%clk 0:00:37]}  Ne1 {[%clk 0:01:36]} 33. Rc4 {[%clk 0:00:33]}  Nxc2 {[%clk 0:01:27]} 34. Rxc2 {[%clk 0:00:33]}  Bxc2+ {[%clk 0:01:27]} 35. Kxc2 {[%clk 0:00:34]}  Re4 {[%clk 0:01:27]} 36. Bd2 {[%clk 0:00:18]}  Rxh4 {[%clk 0:01:27]} 37. Bg2 {[%clk 0:00:15]}  Rh2 {[%clk 0:01:24]} 38. Bxc6 {[%clk 0:00:14]}  h4 {[%clk 0:01:24]} 39. a4 {[%clk 0:00:14]}  Re2 {[%clk 0:01:18]} 40. a5 {[%clk 0:00:12]}  h3 {[%clk 0:01:17]} 41. b4 {[%clk 0:00:11]}  Re6 {[%clk 0:01:15]} 42. Bh1 {[%clk 0:00:08]}  h2 {[%clk 0:01:15]} 43. b5 {[%clk 0:00:08]}  Re5 {[%clk 0:01:15]} 44. a6 {[%clk 0:00:06]}  Rxb5 {[%clk 0:01:13]} 45. a7 {[%clk 0:00:07]}  Rc5+ {[%clk 0:01:13]} 46. Bc3 {[%clk 0:00:06]}  Rc8 {[%clk 0:01:13]} 47. a8=Q {[%clk 0:00:06]}  Rxa8 {[%clk 0:01:13]} 48. Bxa8 {[%clk 0:00:07]}  Kh7 {[%clk 0:01:13]} 49. Be4+ {[%clk 0:00:07]}  Kg8 {[%clk 0:01:09]} 50. Kd2 {[%clk 0:00:06]}  Kf8 {[%clk 0:01:09]} 51. Ke2 {[%clk 0:00:07]}  f6 {[%clk 0:01:10]} 52. g6 {[%clk 0:00:05]}  Ke7 {[%clk 0:01:09]} 53. Kf2 {[%clk 0:00:05]}  Ke6 {[%clk 0:01:09]} 54. Kg2 {[%clk 0:00:04]}  f5 {[%clk 0:01:09]} 55. Bc2 {[%clk 0:00:04]}  f4 {[%clk 0:01:09]} 56. Kxh2 {[%clk 0:00:04]}  f3 {[%clk 0:01:08]} 57. Kg3 {[%clk 0:00:04]}  Ke7 {[%clk 0:01:08]} 58. Kxf3 {[%clk 0:00:04]}  Ke6 {[%clk 0:01:08]} 59. Bxg7 {[%clk 0:00:04]}  Ke7 {[%clk 0:01:09]} 60. Bc3 {[%clk 0:00:05]} 1-0


[Site "https://www.chess.com"]

[Event "Titled Tuesday Blitz March 29 Early 2022"]
[White "Lagunov, Evgenij"]
[Black "Vusatiuk, Vladimir"]
[WhiteFideId "4125363"]
[BlackFideId "14118610"]
[WhiteElo "2200"]
[BlackElo "2157"]
[Result "0-1"]
[Round "10"]
[TimeControl "180+1"]
[Date "2022.03.30"]
[WhiteClock "0:00:02"]
[BlackClock "0:00:06"]

1. e4 {[%clk 0:03:00]}  c5 {[%clk 0:02:56]} 2. Nf3 {[%clk 0:03:00]}  a6 {[%clk 0:02:54]} 3. c4 {[%clk 0:02:58]}  Nc6 {[%clk 0:02:51]} 4. d4 {[%clk 0:02:58]}  cxd4 {[%clk 0:02:49]} 5. Nxd4 {[%clk 0:02:58]}  Nf6 {[%clk 0:02:45]} 6. Nc3 {[%clk 0:02:58]}  e6 {[%clk 0:02:43]} 7. Nxc6 {[%clk 0:02:50]}  bxc6 {[%clk 0:02:38]} 8. e5 {[%clk 0:02:47]}  Ng8 {[%clk 0:02:33]} 9. Ne4 {[%clk 0:02:39]}  Qa5+ {[%clk 0:02:29]} 10. Nc3 {[%clk 0:02:33]}  Qxe5+ {[%clk 0:02:27]} 11. Be2 {[%clk 0:02:33]}  d5 {[%clk 0:02:23]} 12. cxd5 {[%clk 0:02:30]}  cxd5 {[%clk 0:02:24]} 13. O-O {[%clk 0:02:26]}  Nf6 {[%clk 0:02:21]} 14. Re1 {[%clk 0:02:25]}  Qb8 {[%clk 0:02:13]} 15. Bf3 {[%clk 0:01:44]}  Be7 {[%clk 0:02:08]} 16. Qe2 {[%clk 0:01:05]}  Bb7 {[%clk 0:01:57]} 17. g3 {[%clk 0:01:01]}  O-O {[%clk 0:01:47]} 18. Bf4 {[%clk 0:00:59]}  Bd6 {[%clk 0:01:45]} 19. Bg5 {[%clk 0:00:58]}  Nd7 {[%clk 0:01:41]} 20. Rac1 {[%clk 0:00:53]}  Ne5 {[%clk 0:01:39]} 21. Bg2 {[%clk 0:00:52]}  a5 {[%clk 0:01:28]} 22. Nb5 {[%clk 0:00:47]}  Ba6 {[%clk 0:01:24]} 23. a4 {[%clk 0:00:47]}  Bxb5 {[%clk 0:01:19]} 24. axb5 {[%clk 0:00:47]}  Nc4 {[%clk 0:01:13]} 25. b3 {[%clk 0:00:45]}  Na3 {[%clk 0:01:09]} 26. h4 {[%clk 0:00:34]}  Nxb5 {[%clk 0:01:03]} 27. h5 {[%clk 0:00:32]}  h6 {[%clk 0:01:01]} 28. Be3 {[%clk 0:00:31]}  Qb7 {[%clk 0:00:49]} 29. Qg4 {[%clk 0:00:28]}  Kh8 {[%clk 0:00:45]} 30. Bf1 {[%clk 0:00:25]}  Rac8 {[%clk 0:00:40]} 31. Bd3 {[%clk 0:00:20]}  Bb4 {[%clk 0:00:33]} 32. Red1 {[%clk 0:00:18]}  Nc3 {[%clk 0:00:29]} 33. Bd4 {[%clk 0:00:15]}  f5 {[%clk 0:00:21]} 34. Qg6 {[%clk 0:00:13]}  Nxd1 {[%clk 0:00:13]} 35. Rxd1 {[%clk 0:00:10]}  Qf7 {[%clk 0:00:09]} 36. Qxh6+ {[%clk 0:00:09]}  Kg8 {[%clk 0:00:10]} 37. Qg5 {[%clk 0:00:10]}  Bc3 {[%clk 0:00:08]} 38. Be3 {[%clk 0:00:07]}  Qf6 {[%clk 0:00:07]} 39. Qf4 {[%clk 0:00:06]}  e5 {[%clk 0:00:07]} 40. Qa4 {[%clk 0:00:05]}  e4 {[%clk 0:00:06]} 41. Be2 {[%clk 0:00:05]}  d4 {[%clk 0:00:06]} 42. Bf4 {[%clk 0:00:05]}  d3 {[%clk 0:00:06]} 43. Bf1 {[%clk 0:00:05]}  Be5 {[%clk 0:00:05]} 44. Be3 {[%clk 0:00:03]}  Kh8 {[%clk 0:00:06]} 45. h6 {[%clk 0:00:03]}  gxh6 {[%clk 0:00:05]} 46. Bg2 {[%clk 0:00:02]}  Rfd8 {[%clk 0:00:06]} 0-1


[Site "https://www.chess.com"]

[Event "Titled Tuesday Blitz March 29 Early 2022"]
[White "Marcziter, Dmitrii"]
[Black "Todorovic, Bojan"]
[WhiteFideId "13900765"]
[BlackFideId "917087"]
[WhiteElo "2155"]
[BlackElo "2266"]
[Result "0-1"]
[Round "10"]
[TimeControl "180+1"]
[Date "2022.03.30"]
[WhiteClock "0:01:11"]
[BlackClock "0:00:19"]

1. d4 {[%clk 0:03:00]}  d5 {[%clk 0:02:58]} 2. c4 {[%clk 0:03:00]}  dxc4 {[%clk 0:02:57]} 3. e4 {[%clk 0:02:59]}  Nc6 {[%clk 0:02:56]} 4. Nf3 {[%clk 0:02:58]}  Bg4 {[%clk 0:02:55]} 5. Be3 {[%clk 0:02:58]}  e6 {[%clk 0:02:44]} 6. Bxc4 {[%clk 0:02:48]}  Bxf3 {[%clk 0:02:42]} 7. gxf3 {[%clk 0:02:47]}  Bb4+ {[%clk 0:02:39]} 8. Nc3 {[%clk 0:02:46]}  Nge7 {[%clk 0:02:37]} 9. d5 {[%clk 0:02:42]}  Bxc3+ {[%clk 0:02:35]} 10. bxc3 {[%clk 0:02:42]}  Ne5 {[%clk 0:02:33]} 11. Qa4+ {[%clk 0:02:33]}  c6 {[%clk 0:02:18]} 12. dxe6 {[%clk 0:02:23]}  b5 {[%clk 0:02:13]} 13. exf7+ {[%clk 0:02:22]}  Kf8 {[%clk 0:02:12]} 14. Bxb5 {[%clk 0:02:18]}  cxb5 {[%clk 0:02:08]} 15. Qxb5 {[%clk 0:02:18]}  Qc7 {[%clk 0:00:55]} 16. Bc5 {[%clk 0:02:11]}  Qxc5 {[%clk 0:00:52]} 17. Qxc5 {[%clk 0:02:10]}  Nd3+ {[%clk 0:00:52]} 18. Ke2 {[%clk 0:02:10]}  Nxc5 {[%clk 0:00:52]} 19. Rhd1 {[%clk 0:02:08]}  Kxf7 {[%clk 0:00:52]} 20. Ke3 {[%clk 0:02:06]}  Rhd8 {[%clk 0:00:50]} 21. f4 {[%clk 0:02:06]}  Rxd1 {[%clk 0:00:47]} 22. Rxd1 {[%clk 0:02:05]}  Rc8 {[%clk 0:00:43]} 23. Rd6 {[%clk 0:02:03]}  Rc6 {[%clk 0:00:37]} 24. Rd8 {[%clk 0:02:00]}  Nb7 {[%clk 0:00:34]} 25. Ra8 {[%clk 0:01:58]}  Rxc3+ {[%clk 0:00:34]} 26. Kd2 {[%clk 0:01:56]}  Ra3 {[%clk 0:00:34]} 27. Rb8 {[%clk 0:01:54]}  Nc5 {[%clk 0:00:33]} 28. e5 {[%clk 0:01:51]}  Ne6 {[%clk 0:00:32]} 29. Rb7 {[%clk 0:01:43]}  Nxf4 {[%clk 0:00:32]} 30. Rb2 {[%clk 0:01:42]}  g5 {[%clk 0:00:29]} 31. Rc2 {[%clk 0:01:40]}  h6 {[%clk 0:00:29]} 32. Rb2 {[%clk 0:01:40]}  Ned5 {[%clk 0:00:26]} 33. Kc2 {[%clk 0:01:38]}  Ke6 {[%clk 0:00:23]} 34. Kb1 {[%clk 0:01:32]}  Kxe5 {[%clk 0:00:22]} 35. Rb8 {[%clk 0:01:31]}  Rf3 {[%clk 0:00:20]} 36. Re8+ {[%clk 0:01:29]}  Kd4 {[%clk 0:00:20]} 37. Rh8 {[%clk 0:01:12]}  Rxf2 {[%clk 0:00:20]} 38. Rxh6 {[%clk 0:01:12]}  Nc3+ {[%clk 0:00:19]} 39. Kc1 {[%clk 0:01:11]}  Nd3# {[%clk 0:00:19]} 0-1


[Site "https://www.chess.com"]

[Event "Titled Tuesday Blitz March 29 Early 2022"]
[White "Mika, Tomasz"]
[Black "Baches Garcia, Guillermo"]
[WhiteFideId "1132970"]
[BlackFideId "2209764"]
[WhiteElo "2116"]
[BlackElo "2498"]
[Result "1/2-1/2"]
[Round "10"]
[TimeControl "180+1"]
[Date "2022.03.30"]
[WhiteClock "0:00:28"]
[BlackClock "0:00:21"]

1. d4 {[%clk 0:03:00]}  Nf6 {[%clk 0:02:57]} 2. Nf3 {[%clk 0:03:01]}  e6 {[%clk 0:02:57]} 3. g3 {[%clk 0:03:01]}  d5 {[%clk 0:02:57]} 4. Bg2 {[%clk 0:03:01]}  Be7 {[%clk 0:02:57]} 5. O-O {[%clk 0:03:01]}  O-O {[%clk 0:02:58]} 6. c4 {[%clk 0:03:01]}  dxc4 {[%clk 0:02:59]} 7. Qc2 {[%clk 0:02:54]}  a6 {[%clk 0:02:59]} 8. a4 {[%clk 0:02:47]}  Bd7 {[%clk 0:02:59]} 9. Ne5 {[%clk 0:02:40]}  Nc6 {[%clk 0:02:52]} 10. Nxc6 {[%clk 0:02:37]}  Bxc6 {[%clk 0:02:51]} 11. Bxc6 {[%clk 0:02:37]}  bxc6 {[%clk 0:02:51]} 12. Qxc4 {[%clk 0:02:37]}  Qd5 {[%clk 0:02:42]} 13. Qc3 {[%clk 0:02:27]}  Rfd8 {[%clk 0:02:31]} 14. Be3 {[%clk 0:02:04]}  Ne4 {[%clk 0:02:15]} 15. Qc2 {[%clk 0:01:59]}  Bg5 {[%clk 0:02:00]} 16. Bxg5 {[%clk 0:01:29]}  Nxg5 {[%clk 0:01:57]} 17. h4 {[%clk 0:01:29]}  Ne4 {[%clk 0:01:47]} 18. Nc3 {[%clk 0:01:24]}  Nxc3 {[%clk 0:01:39]} 19. bxc3 {[%clk 0:01:24]}  c5 {[%clk 0:01:32]} 20. e3 {[%clk 0:01:22]}  Rac8 {[%clk 0:01:20]} 21. Rab1 {[%clk 0:01:19]}  cxd4 {[%clk 0:01:17]} 22. cxd4 {[%clk 0:01:07]}  c5 {[%clk 0:01:17]} 23. dxc5 {[%clk 0:01:06]}  Qxc5 {[%clk 0:01:15]} 24. Qxc5 {[%clk 0:00:56]}  Rxc5 {[%clk 0:01:14]} 25. Rfc1 {[%clk 0:00:56]}  Ra5 {[%clk 0:00:52]} 26. Rc4 {[%clk 0:00:51]}  g6 {[%clk 0:00:51]} 27. Rb7 {[%clk 0:00:50]}  Rdd5 {[%clk 0:00:39]} 28. Kg2 {[%clk 0:00:48]}  Rdc5 {[%clk 0:00:28]} 29. Rxc5 {[%clk 0:00:37]}  Rxc5 {[%clk 0:00:28]} 30. Rb6 {[%clk 0:00:37]}  Ra5 {[%clk 0:00:26]} 31. Rb4 {[%clk 0:00:36]}  h5 {[%clk 0:00:26]} 32. Kf3 {[%clk 0:00:36]}  Kg7 {[%clk 0:00:27]} 33. Ke4 {[%clk 0:00:36]}  Kf6 {[%clk 0:00:27]} 34. f3 {[%clk 0:00:36]}  Rd5 {[%clk 0:00:23]} 35. Rc4 {[%clk 0:00:34]}  Ra5 {[%clk 0:00:22]} 36. f4 {[%clk 0:00:33]}  Rd5 {[%clk 0:00:22]} 37. Rc6 {[%clk 0:00:31]}  Ra5 {[%clk 0:00:21]} 38. Rc4 {[%clk 0:00:31]}  Rd5 {[%clk 0:00:22]} 39. Rb4 {[%clk 0:00:31]}  Ra5 {[%clk 0:00:21]} 40. Kf3 {[%clk 0:00:30]}  Rd5 {[%clk 0:00:20]} 41. e4 {[%clk 0:00:30]}  Rd3+ {[%clk 0:00:20]} 42. Kf2 {[%clk 0:00:29]}  Ra3 {[%clk 0:00:20]} 43. Kg2 {[%clk 0:00:29]}  Ke7 {[%clk 0:00:20]} 44. e5 {[%clk 0:00:28]}  Kd7 {[%clk 0:00:20]} 45. Rb7+ {[%clk 0:00:28]}  Ke8 {[%clk 0:00:20]} 46. Rb8+ {[%clk 0:00:28]}  Ke7 {[%clk 0:00:21]} 47. Rb7+ {[%clk 0:00:28]}  Ke8 {[%clk 0:00:21]} 48. Rb8+ {[%clk 0:00:28]}  Ke7 {[%clk 0:00:21]} 49. Rb7+ {[%clk 0:00:28]}  Ke8 {[%clk 0:00:21]} 1/2-1/2


[Site "https://www.chess.com"]

[Event "Titled Tuesday Blitz March 29 Early 2022"]
[White "Mirzoev, Azer"]
[Black "Brodowski, Piotr"]
[WhiteFideId "13400304"]
[BlackFideId "1124480"]
[WhiteElo "2525"]
[BlackElo "2422"]
[Result "1-0"]
[Round "10"]
[TimeControl "180+1"]
[Date "2022.03.29"]
[WhiteClock "0:02:30"]
[BlackClock "0:00:31"]

1. b3 {[%clk 0:02:59]}  Nf6 {[%clk 0:02:52]} 2. Bb2 {[%clk 0:03:00]}  g6 {[%clk 0:02:53]} 3. Nf3 {[%clk 0:02:59]}  Bg7 {[%clk 0:02:53]} 4. c4 {[%clk 0:02:59]}  O-O {[%clk 0:02:54]} 5. e3 {[%clk 0:03:00]}  c5 {[%clk 0:02:54]} 6. Be2 {[%clk 0:02:59]}  Nc6 {[%clk 0:02:54]} 7. O-O {[%clk 0:03:00]}  d6 {[%clk 0:02:49]} 8. d4 {[%clk 0:02:57]}  cxd4 {[%clk 0:02:49]} 9. exd4 {[%clk 0:02:57]}  Bg4 {[%clk 0:02:48]} 10. h3 {[%clk 0:02:55]}  Bxf3 {[%clk 0:02:48]} 11. Bxf3 {[%clk 0:02:56]}  Nd7 {[%clk 0:02:47]} 12. Na3 {[%clk 0:02:52]}  Rc8 {[%clk 0:02:43]} 13. Re1 {[%clk 0:02:51]}  Re8 {[%clk 0:02:35]} 14. Nc2 {[%clk 0:02:48]}  a6 {[%clk 0:02:29]} 15. Qd2 {[%clk 0:02:45]}  b5 {[%clk 0:02:08]} 16. cxb5 {[%clk 0:02:41]}  axb5 {[%clk 0:02:07]} 17. Bxc6 {[%clk 0:02:41]}  Rxc6 {[%clk 0:02:07]} 18. Nb4 {[%clk 0:02:42]}  Rc8 {[%clk 0:02:07]} 19. d5 {[%clk 0:02:41]}  Nf6 {[%clk 0:00:49]} 20. Re2 {[%clk 0:02:39]}  Qa5 {[%clk 0:00:43]} 21. Rae1 {[%clk 0:02:38]}  Nxd5 {[%clk 0:00:39]} 22. Nxd5 {[%clk 0:02:34]}  Qxd2 {[%clk 0:00:39]} 23. Rxd2 {[%clk 0:02:34]}  f6 {[%clk 0:00:37]} 24. Rxe7 {[%clk 0:02:30]}  Rxe7 {[%clk 0:00:31]} 25. Nxe7+ {[%clk 0:02:30]} 1-0


[Site "https://www.chess.com"]

[Event "Titled Tuesday Blitz March 29 Early 2022"]
[White "Mortazavi, Ali"]
[Black "Papasimakopoulos, Alexandros"]
[WhiteFideId "401323"]
[BlackFideId "4244125"]
[WhiteElo "2339"]
[BlackElo "2340"]
[Result "0-1"]
[Round "10"]
[TimeControl "180+1"]
[Date "2022.03.29"]
[WhiteClock "0:00:22"]
[BlackClock "0:00:36"]

1. Nf3 {[%clk 0:03:00]}  f5 {[%clk 0:02:57]} 2. d3 {[%clk 0:03:00]}  d6 {[%clk 0:02:55]} 3. d4 {[%clk 0:02:56]}  Nf6 {[%clk 0:02:55]} 4. Nc3 {[%clk 0:02:53]}  g6 {[%clk 0:02:54]} 5. Bg5 {[%clk 0:02:53]}  Nbd7 {[%clk 0:02:55]} 6. h4 {[%clk 0:02:49]}  h6 {[%clk 0:02:54]} 7. Bf4 {[%clk 0:02:49]}  Bg7 {[%clk 0:02:52]} 8. d5 {[%clk 0:02:35]}  Nc5 {[%clk 0:02:47]} 9. e3 {[%clk 0:02:34]}  e5 {[%clk 0:02:44]} 10. dxe6 {[%clk 0:02:31]}  Bxe6 {[%clk 0:02:45]} 11. Nd4 {[%clk 0:02:27]}  Bd7 {[%clk 0:02:43]} 12. Bc4 {[%clk 0:02:22]}  Qe7 {[%clk 0:02:41]} 13. Qf3 {[%clk 0:02:04]}  O-O-O {[%clk 0:02:40]} 14. O-O-O {[%clk 0:01:57]}  Nce4 {[%clk 0:02:38]} 15. Nxe4 {[%clk 0:01:48]}  Nxe4 {[%clk 0:02:37]} 16. Qe2 {[%clk 0:01:45]}  g5 {[%clk 0:02:32]} 17. Bh2 {[%clk 0:01:43]}  Qf6 {[%clk 0:02:18]} 18. c3 {[%clk 0:01:28]}  Rhe8 {[%clk 0:02:06]} 19. Qc2 {[%clk 0:01:21]}  Kb8 {[%clk 0:02:03]} 20. Nb3 {[%clk 0:01:10]}  f4 {[%clk 0:02:00]} 21. f3 {[%clk 0:01:07]}  Ng3 {[%clk 0:01:53]} 22. Bxg3 {[%clk 0:01:07]}  fxg3 {[%clk 0:01:54]} 23. e4 {[%clk 0:01:06]}  gxh4 {[%clk 0:01:46]} 24. Nd4 {[%clk 0:01:03]}  Qg5+ {[%clk 0:01:43]} 25. Kb1 {[%clk 0:01:03]}  h3 {[%clk 0:01:34]} 26. gxh3 {[%clk 0:00:56]}  Rf8 {[%clk 0:01:33]} 27. Be6 {[%clk 0:00:50]}  Bxd4 {[%clk 0:01:31]} 28. Bxd7 {[%clk 0:00:50]}  Rxd7 {[%clk 0:01:31]} 29. cxd4 {[%clk 0:00:50]}  Rxf3 {[%clk 0:01:31]} 30. Rhg1 {[%clk 0:00:41]}  h5 {[%clk 0:01:26]} 31. Qe2 {[%clk 0:00:39]}  Rf8 {[%clk 0:01:16]} 32. e5 {[%clk 0:00:37]}  dxe5 {[%clk 0:01:14]} 33. dxe5 {[%clk 0:00:38]}  Re7 {[%clk 0:00:51]} 34. e6 {[%clk 0:00:33]}  h4 {[%clk 0:00:49]} 35. Rd7 {[%clk 0:00:26]}  Rxd7 {[%clk 0:00:47]} 36. exd7 {[%clk 0:00:26]}  Qf5+ {[%clk 0:00:47]} 37. Ka1 {[%clk 0:00:26]}  Qxd7 {[%clk 0:00:46]} 38. a3 {[%clk 0:00:27]}  Qxh3 {[%clk 0:00:45]} 39. Re1 {[%clk 0:00:27]}  a6 {[%clk 0:00:40]} 40. Qe7 {[%clk 0:00:26]}  Rg8 {[%clk 0:00:36]} 41. Qf7 {[%clk 0:00:24]}  Qc8 {[%clk 0:00:36]} 42. Qh5 {[%clk 0:00:22]}  h3 {[%clk 0:00:36]} 0-1


[Site "https://www.chess.com"]

[Event "Titled Tuesday Blitz March 29 Early 2022"]
[White "Odegov, Artem"]
[Black "Skliarov, Viktor"]
[WhiteFideId "34183644"]
[BlackFideId "14106736"]
[WhiteElo "2286"]
[BlackElo "2229"]
[Result "0-1"]
[Round "10"]
[TimeControl "180+1"]
[Date "2022.03.30"]
[WhiteClock "0:00:14"]
[BlackClock "0:00:07"]

1. d4 {[%clk 0:02:56]}  Nf6 {[%clk 0:02:59]} 2. c4 {[%clk 0:02:56]}  e6 {[%clk 0:03:00]} 3. Nf3 {[%clk 0:02:56]}  b6 {[%clk 0:02:59]} 4. g3 {[%clk 0:02:55]}  Bb7 {[%clk 0:03:00]} 5. Bg2 {[%clk 0:02:55]}  Be7 {[%clk 0:03:00]} 6. O-O {[%clk 0:02:55]}  O-O {[%clk 0:03:01]} 7. d5 {[%clk 0:02:56]}  exd5 {[%clk 0:03:01]} 8. Nh4 {[%clk 0:02:56]}  Ne4 {[%clk 0:03:01]} 9. Nf5 {[%clk 0:02:45]}  dxc4 {[%clk 0:02:39]} 10. Nd2 {[%clk 0:02:09]}  d5 {[%clk 0:02:26]} 11. Nxe4 {[%clk 0:01:42]}  dxe4 {[%clk 0:02:20]} 12. Qc2 {[%clk 0:01:42]}  Bf6 {[%clk 0:01:55]} 13. Rd1 {[%clk 0:01:37]}  Qe8 {[%clk 0:01:39]} 14. Bf4 {[%clk 0:01:35]}  Na6 {[%clk 0:01:24]} 15. Rd2 {[%clk 0:00:57]}  Nb4 {[%clk 0:00:39]} 16. Qxc4 {[%clk 0:00:54]}  Qe6 {[%clk 0:00:19]} 17. Qxe6 {[%clk 0:00:40]}  fxe6 {[%clk 0:00:19]} 18. Nd4 {[%clk 0:00:38]}  e5 {[%clk 0:00:17]} 19. Ne6 {[%clk 0:00:26]}  exf4 {[%clk 0:00:13]} 20. Nxf8 {[%clk 0:00:27]}  Rxf8 {[%clk 0:00:09]} 21. a3 {[%clk 0:00:27]}  Na6 {[%clk 0:00:05]} 22. gxf4 {[%clk 0:00:28]}  Nc5 {[%clk 0:00:05]} 23. Rad1 {[%clk 0:00:27]}  a5 {[%clk 0:00:05]} 24. e3 {[%clk 0:00:28]}  Ba6 {[%clk 0:00:04]} 25. Rd5 {[%clk 0:00:25]}  Be2 {[%clk 0:00:04]} 26. R1d2 {[%clk 0:00:24]}  Bd3 {[%clk 0:00:04]} 27. Bh3 {[%clk 0:00:19]}  a4 {[%clk 0:00:04]} 28. Bg4 {[%clk 0:00:18]}  Kf7 {[%clk 0:00:04]} 29. Bd1 {[%clk 0:00:19]}  Ke7 {[%clk 0:00:05]} 30. f3 {[%clk 0:00:17]}  g6 {[%clk 0:00:04]} 31. fxe4 {[%clk 0:00:17]}  Bxe4 {[%clk 0:00:04]} 32. Rxc5 {[%clk 0:00:16]}  bxc5 {[%clk 0:00:04]} 33. Bxa4 {[%clk 0:00:17]}  Rd8 {[%clk 0:00:05]} 34. Rxd8 {[%clk 0:00:15]}  Kxd8 {[%clk 0:00:06]} 35. b4 {[%clk 0:00:16]}  cxb4 {[%clk 0:00:06]} 36. axb4 {[%clk 0:00:17]}  Bc3 {[%clk 0:00:06]} 37. b5 {[%clk 0:00:17]}  Be1 {[%clk 0:00:07]} 38. Kf1 {[%clk 0:00:17]}  Bh4 {[%clk 0:00:06]} 39. Bb3 {[%clk 0:00:17]}  Ke7 {[%clk 0:00:06]} 40. Bc4 {[%clk 0:00:18]}  Kd6 {[%clk 0:00:06]} 41. Ke2 {[%clk 0:00:18]}  Kc5 {[%clk 0:00:07]} 42. Bg8 {[%clk 0:00:19]}  h6 {[%clk 0:00:07]} 43. Be6 {[%clk 0:00:16]}  Kxb5 {[%clk 0:00:07]} 44. Kd2 {[%clk 0:00:16]}  c5 {[%clk 0:00:07]} 45. Bf7 {[%clk 0:00:16]}  Kb4 {[%clk 0:00:07]} 46. Be6 {[%clk 0:00:15]}  c4 {[%clk 0:00:07]} 47. Bf5 {[%clk 0:00:14]}  c3+ {[%clk 0:00:07]} 0-1


[Site "https://www.chess.com"]